[Event "2nd Hersonissos Open 2018"]
[Site "Hersonissos"]
[Date "2018.06.18"]
[Round "2"]
[White "Stefanov, Evtim"]
[Black "Aggeletou, Fereniki"]
[Result "1-0"]
[ECO "A40"]
[WhiteElo "1959"]
[BlackElo "1103"]
[Annotator "NA RC"]
[PlyCount "45"]
[EventDate "2018.06.16"]
[EventType "swiss"]
[EventCountry "GRE"]
[SourceTitle "playchess.com"]
[Source "ChessBase"]
[SourceQuality "1"]
[TimeControl "5400+30"]

{[%evp 9,44,41,74,58,59,46,46,30,70,67,113,89,102,47,112,71,96,85,83,93,89,72,96,0,131,128,194,172,422,153,362,385,29996,13,29997,29998,29999]} 1. c4 {[%emt 0:00:02]} b6 {[%emt 0:01:48]} 2. d4 {[%emt 0:00:07]} e6 {[%emt 0:00:00]} 3. e4 {[%emt 0:00:14]} Bb7 {[%emt 0:02:09]} 4. Nc3 {[%emt 0:00:34]} d6 {[%emt 0:02:21]} 5. f4 {[%emt 0:00:41] A40: Unusual replies to 1 d4} g6 {[%emt 0:02:10]} 6. Nf3 {[%emt 0:00:40]} Bg7 {[%emt 0:00:52]} 7. Bd3 {[%emt 0:00:45]} Ne7 {[%emt 0:00:15]} 8. O-O {[%emt 0:00:22]} Nd7 {[%emt 0:01:16]} 9. Be3 {[%emt 0:02:15]} a5 $146 {[%emt 0:00:51]} ({Predecessor:} 9... O-O 10. Qd2 Nf6 11. h3 c5 12. d5 exd5 13. cxd5 {1-0 (47) Grandelius,N (2647)-Stany,G (2502) London 2017}) 10. Qc2 {[%emt 0:00:34]} O-O {[%emt 0:00:35]} 11. f5 {[%emt 0:00:14]} Nc6 {[%emt 0:11:17]} (11... exf5 $14 12. exf5 Re8) 12. a3 {[%emt 0:01:56]} e5 {[%emt 0:01:25] [#]} 13. d5 $1 {[%emt 0:02:27]} Nd4 {[%emt 0:00:31]} 14. Bxd4 {[%emt 0:00:27]} exd4 {[%emt 0:00:26]} 15. Ne2 {[%emt 0:00:27]} Ne5 {[%emt 0:01:30]} 16. Nfxd4 {[%emt 0:00:43]} ({Better is} 16. Nexd4 $16 Qe7 17. Rae1) 16... Nxd3 {[%emt 0:00:47]} (16... Qg5 $11 {hält das Gleichgewicht.} 17. Rf4 Qe7) 17. Qxd3 {[%emt 0:00:08]} Kh8 {[%emt 0:04:24]} 18. Rf3 {[%emt 0:02:49]} Rg8 $2 {[%emt 0:01:32]} (18... Be5 19. Raf1 g5) 19. Rh3 {[%emt 0:01:41]} (19. fxg6 $18 fxg6 20. Ne6) 19... gxf5 $2 {[%emt 0:04:06]} (19... Be5 {was necessary.} 20. Qd2 g5) 20. Nxf5 {[%emt 0:00:30]} Bxb2 {[%emt 0:00:35] [#]} (20... Qg5 $18 21. Rg3 Qf6) 21. Rxh7+ $1 {[%emt 0:01:00]} Kxh7 {[%emt 0:01:09]} 22. Qh3+ {[%emt 0:00:12]} Kg6 {[%emt 0:00:07]} 23. Qh6# 1-0

[Event "2nd Hersonissos Open 2018"]
[Site "Hersonissos"]
[Date "2018.06.18"]
[Round "2"]
[White "Warnk, Torsten"]
[Black "Hommeles, Theo"]
[Result "0-1"]
[ECO "A40"]
[WhiteElo "1853"]
[BlackElo "2361"]
[Annotator "NA RC"]
[PlyCount "112"]
[EventDate "2018.06.16"]
[EventType "swiss"]
[EventCountry "GRE"]
[SourceTitle "playchess.com"]
[Source "ChessBase"]
[SourceQuality "1"]
[TimeControl "5400+30"]

{[%evp 8,107,22,17,20,0,4,12,0,-17,-21,-28,-37,-53,-22,-20,0,-63,-18,-40,-40,-42,-21,-63,-54,-59,-64,-58,-55,-71,-67,-79,-101,-131,-57,-91,-39,-85,-39,-97,-68,-71,-45,-102,-72,-95,-102,-80,-70,-91,32767,-82,-28,-39,-26,-17,-20,-21,32767,32767,32767,32767,32767,-196,-160,32767,32767,-163,-165,-172,-164,-234,-266,-243,-197,32767,32767,-957,-1079,32767,32767,32767,-441,-728,32767,-872,32767,32767,32767,32767,32767,-2011,-2541,-2315,32767,-2529,-29986,32767,32767,-29990,-29990,-29990]} 1. d4 {[%emt 0:00:00]} g6 {[%emt 0:00:07]} 2. Nf3 {[%emt 0:00:08]} Bg7 {[%emt 0:00:08]} 3. Bf4 {[%emt 0:00:18]} c5 {[%emt 0:01:41]} 4. c3 {[%emt 0:01:47]} Nf6 {[%emt 0:01:20]} 5. e3 {[%emt 0:01:07]} O-O {[%emt 0:00:51] LiveBook: 19 Games} 6. Be2 {[%emt 0:01:01]} b6 {[%emt 0:03:10]} 7. O-O {[%emt 0:03:29]} Bb7 {[%emt 0:00:14] A48: 1 d4 Nf6 2 Nf3 g6: Torre, London and Colle Systems} 8. Na3 {[%emt 0:02:44]} (8. h3 d6 9. Bh2 Nbd7 10. a4 Qc7 11. Nbd2 a6 12. Qb3 Bc6 13. c4 e6 14. Rfd1 Rfd8 15. Rac1 Rab8 16. Nb1 Ne4 17. d5 exd5 18. cxd5 Bb7 19. Nfd2 Nxd2 20. Rxd2 {0-1 (55) Bruzon Batista,L (2698)-Radjabov,T (2733) Tromsoe 2013}) 8... d6 {[%emt 0:02:33]} 9. Rc1 $146 {[%emt 0:01:42]} ({Predecessor:} 9. h3 Nbd7 10. Bh2 a6 11. b4 cxb4 12. cxb4 b5 13. Nb1 Nb6 14. Nc3 {½-½ (29) Muse,D (2378)-Kohler,T (2246) Berlin 2010}) 9... Nbd7 {[%emt 0:01:02]} 10. Qb3 {[%emt 0:03:05]} Rc8 {[%emt 0:02:57]} 11. Rfd1 {[%emt 0:03:35]} Qc7 {[%emt 0:00:34]} 12. Qc2 {[%emt 0:03:26]} (12. Nb5 $11 Qb8 13. c4) 12... Qb8 {[%emt 0:00:40]} 13. Qb1 {[%emt 0:02:08]} Qa8 {[%emt 0:02:21]} 14. Ne1 {[%emt 0:03:41]} Rfd8 {[%emt 0:04:24]} 15. Bg5 {[%emt 0:07:59]} h6 {[%emt 0:04:28]} 16. Bh4 {[%emt 0:01:52]} g5 {[%emt 0:00:47]} 17. Bg3 {[%emt 0:07:50]} Ne4 {[%emt 0:01:08]} 18. f3 {[%emt 0:03:45]} Nxg3 {[%emt 0:00:26]} 19. hxg3 {[%emt 0:00:01]} Nf6 {[%emt 0:02:57]} 20. Kf2 {[%emt 0:03:35]} (20. e4 $15) 20... Rc7 {[%emt 0:12:00]} (20... h5 $17) 21. Nc4 {[%emt 0:01:51]} Rdc8 {[%emt 0:01:32]} 22. Nd2 {[%emt 0:00:15]} a6 {[%emt 0:06:56]} 23. b4 {[%emt 0:05:14]} cxd4 {[%emt 0:05:47]} 24. cxd4 {[%emt 0:02:14]} Nd5 {[%emt 0:00:08]} 25. Rxc7 {[%emt 0:03:27]} Rxc7 {[%emt 0:00:02]} 26. Rc1 {[%emt 0:08:37]} Nc3 {[%emt 0:08:37]} 27. Qb2 {[%emt 0:00:40]} Qc8 {[%emt 0:01:46]} 28. Bd3 {[%emt 0:07:02]} e5 {[%emt 0:04:39]} 29. Nb3 {[%emt 0:05:43]} b5 {[%emt 0:06:58]} (29... g4 $17 30. Bf5 Qxf5 31. Rxc3 Re7 32. dxe5 Bxe5) 30. Bf5 {[%emt 0:03:07]} Nd1+ {[%emt 0:01:31]} 31. Rxd1 {[%emt 0:00:10]} Qxf5 {[%emt 0:00:04]} 32. Rc1 {[%emt 0:00:26]} Re7 {[%emt 0:02:14]} 33. g4 {[%emt 0:01:54]} Qe6 {[%emt 0:03:08]} 34. Qd2 {[%emt 0:00:53]} e4 {[%emt 0:02:56]} 35. Rc3 {[%emt 0:03:34]} (35. d5 $17 Bxd5 36. Nd4 Bxd4 37. Qxd4) 35... f5 {[%emt 0:03:47]} 36. gxf5 {[%emt 0:01:13]} Qxf5 {[%emt 0:00:03]} 37. Qc2 {[%emt 0:01:07]} Qf7 {[%emt 0:00:07]} 38. Na5 {[%emt 0:02:08]} Bd5 {[%emt 0:01:24]} 39. Nb3 {[%emt 0:02:09]} (39. Rc8+ $142 Bf8 40. Nc6) 39... exf3 {[%emt 0:01:54]} 40. gxf3 {[%emt 0:00:00]} g4 {[%emt 0:00:00]} 41. f4 {[%emt 0:00:00]} Be4 {[%emt 0:00:00]} 42. Qe2 {[%emt 0:00:00]} Qh5 {[%emt 0:00:00]} 43. Ng2 {[%emt 0:00:00]} g3+ {[%emt 0:00:00]} 44. Ke1 {[%emt 0:00:00]} Qxe2+ {[%emt 0:00:00]} (44... Qh2 $142 45. Kd1 Bxg2 46. Rc8+ Kf7) 45. Kxe2 {[%emt 0:00:00]} Bxg2 {[%emt 0:00:00]} 46. Rc1 {[%emt 0:00:00]} Bd5 {[%emt 0:00:00]} 47. Rg1 {[%emt 0:00:00]} g2 {[%emt 0:00:00]} 48. Kd3 {[%emt 0:00:00]} h5 {[%emt 0:00:00]} 49. Nd2 {[%emt 0:00:00]} h4 {[%emt 0:00:00]} 50. e4 {[%emt 0:00:00]} Bc4+ {[%emt 0:00:00]} 51. Nxc4 {[%emt 0:00:00]} bxc4+ {[%emt 0:00:00]} 52. Kxc4 {[%emt 0:00:00]} h3 {[%emt 0:00:00]} 53. e5 {[%emt 0:00:00]} dxe5 {[%emt 0:00:00]} 54. fxe5 {[%emt 0:00:00]} Bxe5 {[%emt 0:00:00]} 55. dxe5 {[%emt 0:00:00]} Rxe5 {[%emt 0:00:00]} 56. Kd3 {[%emt 0:00:00]} Rg5 {[%emt 0:00:00]} 0-1

[Event "2nd Hersonissos Open 2018"]
[Site "Hersonissos"]
[Date "2018.06.18"]
[Round "2"]
[White "Storkebaum, Ulrike"]
[Black "Djingarova, Emilia"]
[Result "0-1"]
[ECO "B41"]
[WhiteElo "1825"]
[BlackElo "2218"]
[Annotator "NA RC"]
[PlyCount "66"]
[EventDate "2018.06.16"]
[EventType "swiss"]
[EventCountry "GRE"]
[SourceTitle "playchess.com"]
[Source "ChessBase"]
[SourceQuality "1"]
[TimeControl "5400+30"]

{[%evp 13,62,61,64,59,53,58,78,72,84,51,62,77,81,63,84,10,87,73,87,25,49,10,65,0,43,0,0,0,60,-10,12,-14,-22,-72,-58,-45,-20,-75,-48,32767,32767,-100,-113,-419,-434,-436,-453,-435,-450,-462,-383]} 1. e4 {[%emt 0:00:00]} c5 {[%emt 0:00:32]} 2. Nf3 {[%emt 0:00:00]} e6 {[%emt 0:00:41]} 3. d4 {[%emt 0:00:00]} cxd4 {[%emt 0:00:13]} 4. Nxd4 {[%emt 0:00:06]} a6 {[%emt 0:00:05]} 5. c4 {[%emt 0:03:47]} Nf6 {[%emt 0:00:52]} 6. Nc3 {[%emt 0:00:11]} d6 {[%emt 0:00:44]} 7. Be2 {[%emt 0:02:42]} Be7 {[%emt 0:00:11]} 8. Be3 {[%emt 0:00:17]} O-O {[%emt 0:01:46]} 9. O-O {[%emt 0:00:18]} Qc7 {[%emt 0:02:11]} 10. Rc1 {[%emt 0:01:25]} Nbd7 {[%emt 0:01:58] LiveBook: 47 Games B41: Sicilian: Kan Variation: 5 c4} (10... b6 11. f3 Bb7 12. b4 Nbd7 13. Qb3 Rac8 14. Rfd1 Qb8 15. Bf1 Bd8 16. Kh1 Bc7 17. Bg1 Rfe8 18. Qb1 Ne5 {1-0 (47) Nepomniachtchi,I (2730)-Milov,V (2622) Dubai 2014}) 11. b3 {[%emt 0:02:50]} Re8 {[%emt 0:01:50]} 12. f4 {[%emt 0:01:31]} b6 {[%emt 0:00:27]} 13. Bf3 {[%emt 0:03:48]} Bb7 {[%emt 0:00:29]} 14. f5 {[%emt 0:04:36]} (14. g4 $16) 14... Bf8 {[%emt 0:07:59]} (14... Bd8 $11) 15. fxe6 $146 {[%emt 0:05:45]} ({Predecessor:} 15. Qc2 Ne5 16. Rcd1 Neg4 17. Qe2 Nxe3 18. Qxe3 e5 19. Nc2 d5 20. Qd3 d4 {0-1 (40) Thiruchelvam,M (2020)-Iotov,V Oropesa del Mar 1998}) 15... fxe6 {[%emt 0:00:11]} 16. Qe1 {[%emt 0:07:46]} (16. Bg4 $5 Nc5 17. Rxf6 gxf6 18. b4 Nxe4 19. Bxe6+ Rxe6 20. Nxe6 Qxc4 21. Qg4+ Kh8 22. Bd4 $18 (22. Bxb6 Re8 $11)) 16... Ne5 {[%emt 0:07:53]} 17. Qg3 {[%emt 0:03:29]} Rab8 {[%emt 0:23:07]} (17... Nxf3+ $11 18. Qxf3 (18. gxf3 Rac8 $11) 18... Qd7) 18. Kh1 {[%emt 0:01:00]} ({Better is} 18. Be2 $14 Nxe4 19. Nxe4 Bxe4 20. Rxf8+ Kxf8 21. Qf4+ Bf5 {[#]} 22. Nxe6+ $1 {[%mdl 512]} Rxe6 23. Qxf5+ Qf7 24. Qxh7) 18... Qf7 {[%emt 0:07:30]} 19. Rcd1 {[%emt 0:08:01]} Qg6 {[%emt 0:03:57]} 20. Qxg6 {[%emt 0:06:01]} Nxg6 {[%emt 0:00:09]} ({Better is} 20... hxg6 $11 21. Be2 Nxe4 22. Nxe4 Bxe4) 21. Nde2 {[%emt 0:00:39]} Ba8 {[%emt 0:02:20]} 22. Ng3 {[%emt 0:01:32]} Ne5 {[%emt 0:06:52]} 23. h3 b5 {[%emt 0:00:57]} 24. cxb5 {[%emt 0:10:50]} axb5 {[%emt 0:00:05]} 25. Nh5 {[%emt 0:06:49]} Nfd7 {[%emt 0:03:40]} 26. Nf4 {[%emt 0:02:32]} b4 {[%emt 0:04:21]} 27. Na4 {[%emt 0:02:58]} Nf6 {[%emt 0:00:20]} 28. Rd4 $2 {[%emt 0:03:37]} (28. Bb6 $17) 28... Nxf3 {[%emt 0:00:19]} 29. gxf3 {[%emt 0:00:57]} e5 $1 {[%emt 0:00:05]} 30. Rc4 {[%emt 0:01:21]} exf4 {[%emt 0:00:13]} 31. Bxf4 {[%emt 0:00:08]} Nd7 $19 {[%emt 0:02:33]} 32. Bd2 {[%emt 0:05:39]} Ne5 {[%emt 0:01:41]} 33. Rd4 {[%emt 0:02:35]} Nxf3 {[%emt 0:02:45]} 0-1

[Event "2nd Hersonissos Open 2018"]
[Site "Hersonissos"]
[Date "2018.06.18"]
[Round "2"]
[White "Papidakis, Georgios"]
[Black "Umbetov, Kazybek"]
[Result "0-1"]
[ECO "A45"]
[WhiteElo "1710"]
[BlackElo "2001"]
[Annotator "NA RC"]
[PlyCount "78"]
[EventDate "2018.06.16"]
[EventType "swiss"]
[EventCountry "GRE"]
[SourceTitle "playchess.com"]
[Source "ChessBase"]
[SourceQuality "1"]
[TimeControl "5400+30"]

{[%evp 8,59,46,25,33,21,37,43,43,43,42,49,68,13,18,17,66,53,42,22,14,4,52,13,74,66,85,79,114,88,84,64,72,47,77,72,92,51,68,35,40,0,0,0,0,0,0,14,0,32767,32767,32767,32767,-216]} 1. d4 {[%emt 0:00:00]} Nf6 {[%emt 0:00:04]} 2. Bf4 {[%emt 0:00:00]} d5 {[%emt 0:00:09]} 3. e3 {[%emt 0:00:00]} c6 {[%emt 0:00:03]} 4. c4 {[%emt 0:00:33]} Qb6 {[%emt 0:02:34] D10: Slav Defence: 3 cxd5 (without early Nf3) and 3 Nc3} (4... e6 5. Nc3 Bd6 6. Bxd6 Qxd6 7. Nf3 O-O 8. Qc2 Nbd7 9. Rd1 b6 10. Be2 Bb7 11. O-O Qe7 12. e4 dxe4 13. Nxe4 c5 14. Nc3 cxd4 15. Nxd4 {1-0 (46) Kramnik,V (2777)-Dubov,D (2661) Berlin 2015}) 5. Qb3 {[%emt 0:00:06]} Bf5 {[%emt 0:06:53]} 6. Nc3 {[%emt 0:00:56]} e6 {[%emt 0:00:13]} 7. c5 {[%emt 0:00:04]} Qxb3 {[%emt 0:01:14]} 8. axb3 {[%emt 0:00:02]} Nbd7 {[%emt 0:01:40]} 9. b4 {[%emt 0:01:55] LiveBook: 13 Games} Nh5 {[%emt 0:04:56]} 10. Bg3 {[%emt 0:01:23]} (10. Bc7 $16) 10... Nxg3 {[%emt 0:08:29]} 11. hxg3 {[%emt 0:00:09]} g5 $146 {[%emt 0:02:27]} ({Predecessor:} 11... Be7) 12. Kd2 {[%emt 0:13:40]} Bg7 {[%emt 0:04:01]} 13. Bd3 {[%emt 0:01:45]} Bxd3 {[%emt 0:00:38]} 14. Kxd3 {[%emt 0:00:02]} O-O {[%emt 0:00:27]} 15. f4 {[%emt 0:07:58]} gxf4 {[%emt 0:17:59]} (15... a6 $11 {keeps the balance.}) 16. gxf4 {[%emt 0:00:49]} a6 {[%emt 0:04:47]} 17. Nf3 {[%emt 0:04:30]} Rae8 {[%emt 0:09:08]} 18. Rh3 {[%emt 0:02:55]} f5 {[%emt 0:04:25]} 19. Rg1 {[%emt 0:10:21]} Nf6 {[%emt 0:01:28]} 20. Ke2 {[%emt 0:04:54]} Re7 {[%emt 0:07:30]} 21. Ne5 {[%emt 0:03:37]} Ne4 {[%emt 0:01:28]} 22. Nxe4 {[%emt 0:00:28]} fxe4 {[%emt 0:00:38]} 23. Ng4 {[%emt 0:00:29]} b6 {[%emt 0:01:07]} 24. Kd2 {[%emt 0:02:34]} bxc5 {[%emt 0:00:25]} 25. bxc5 {[%emt 0:00:13]} Rb8 {[%emt 0:00:09]} 26. Kc2 {[%emt 0:03:21]} Reb7 {[%emt 0:00:15]} 27. Rb1 {[%emt 0:00:15]} a5 {[%emt 0:05:09]} 28. Rhh1 {[%emt 0:02:18]} Rb3 {[%emt 0:00:41]} 29. Rhe1 {[%emt 0:00:19]} a4 {[%emt 0:00:59]} 30. Nh2 $19 {[%emt 0:05:19]} (30. Nf2 $17 {was necessary.}) 30... R8b4 {[%emt 0:00:30]} 31. Re2 {[%emt 0:13:49]} Bf6 {[%emt 0:04:33]} 32. g3 {[%emt 0:03:06]} Bd8 {[%emt 0:00:15]} 33. Ng4 {[%emt 0:01:29]} Bc7 {[%emt 0:04:40]} 34. Nf6+ {[%emt 0:14:11]} Kf7 {[%emt 0:00:08]} 35. Nxh7 {[%emt 0:00:04]} Rc4+ {[%emt 0:00:44]} 36. Kd1 {[%emt 0:00:24]} Ba5 {[%emt 0:00:24]} 37. Rg2 {[%emt 0:03:55]} Rxe3 {[%emt 0:00:18]} 38. Ng5+ {[%emt 0:00:32]} Kg6 {[%emt 0:00:01]} 39. b3 {[%emt 0:00:33]} Re1# {[%emt 0:00:11]} 0-1

[Event "2nd Hersonissos Open 2018"]
[Site "Hersonissos"]
[Date "2018.06.18"]
[Round "2"]
[White "Ivanov, Svetlen"]
[Black "Aggelakis, Ilias"]
[Result "1-0"]
[ECO "A46"]
[WhiteElo "1591"]
[BlackElo "1683"]
[Annotator "NA RC"]
[PlyCount "83"]
[EventDate "2018.06.16"]
[EventType "swiss"]
[EventCountry "GRE"]
[SourceTitle "playchess.com"]
[Source "ChessBase"]
[SourceQuality "1"]
[TimeControl "5400+30"]

1. d4 {[%emt 0:00:00]} Nf6 {[%emt 0:00:51]} 2. Nf3 {[%emt 0:00:00]} d5 {[%emt 0:03:30]} 3. c4 {[%emt 0:00:20]} e6 {[%emt 0:00:19]} 4. g3 {[%emt 0:00:07]} Bb4+ {[%emt 0:01:44]} 5. Bd2 {[%emt 0:01:36]} Bxd2+ {[%emt 0:00:22]} 6. Qxd2 {[%emt 0:00:39]} O-O {[%emt 0:00:43]} 7. Bg2 {[%emt 0:01:05]} Ne4 {[%emt 0:01:49]} 8. Qc2 {[%emt 0:01:12]} Nd7 {[%emt 0:02:33]} 9. Nbd2 {[%emt 0:02:08]} Ndf6 {[%emt 0:03:39]} 10. Ne5 {[%emt 0:06:19]} Nxd2 {[%emt 0:01:27]} 11. Qxd2 {[%emt 0:00:12]} Qe7 {[%emt 0:03:11]} 12. O-O {[%emt 0:02:39]} Rd8 {[%emt 0:02:59]} 13. cxd5 {[%emt 0:03:04]} exd5 {[%emt 0:01:37]} 14. Rfc1 {[%emt 0:01:43]} c6 {[%emt 0:04:32]} 15. b4 {[%emt 0:02:41]} Ne4 {[%emt 0:06:33]} 16. Qb2 {[%emt 0:03:20]} Nd6 {[%emt 0:06:53]} 17. e3 {[%emt 0:04:20]} f6 {[%emt 0:00:37]} 18. Nd3 {[%emt 0:00:29]} Nc4 {[%emt 0:00:24]} 19. Qb3 {[%emt 0:00:43]} Bf5 {[%emt 0:02:38]} 20. a3 {[%emt 0:07:40]} Bxd3 {[%emt 0:00:51]} 21. Qxd3 {[%emt 0:00:11]} b5 {[%emt 0:08:43]} 22. Qc3 {[%emt 0:04:08]} a5 {[%emt 0:03:45]} 23. Bf1 {[%emt 0:02:00]} axb4 {[%emt 0:01:32]} 24. axb4 {[%emt 0:00:04]} Re8 {[%emt 0:05:07]} 25. Rxa8 {[%emt 0:03:23]} Rxa8 {[%emt 0:00:08]} 26. Ra1 {[%emt 0:00:05]} Rxa1 {[%emt 0:02:08]} 27. Qxa1 {[%emt 0:00:17]} Qb7 {[%emt 0:01:09]} 28. Bd3 {[%emt 0:01:22]} Nd6 {[%emt 0:03:43]} 29. Qa5 {[%emt 0:01:13]} Qd7 {[%emt 0:04:30]} 30. Qa8+ {[%emt 0:00:57]} Qe8 {[%emt 0:00:10]} 31. Qxe8+ {[%emt 0:00:50]} Nxe8 {[%emt 0:00:04]} 32. Bf5 {[%emt 0:00:03]} Nc7 {[%emt 0:00:53]} 33. Bd7 {[%emt 0:01:57]} Na6 {[%emt 0:00:05]} 34. Bxc6 {[%emt 0:00:04]} Nxb4 {[%emt 0:00:04]} 35. Bxb5 {[%emt 0:00:04]} Kf7 {[%emt 0:00:16]} 36. Kf1 {[%emt 0:00:13]} Ke6 {[%emt 0:00:10]} 37. Ke2 {[%emt 0:00:04]} Nc2 {[%emt 0:00:49]} 38. Kd2 {[%emt 0:00:46]} Na3 {[%emt 0:00:15]} 39. Ba6 {[%emt 0:00:11]} Kf5 {[%emt 0:01:20]} 40. f3 {[%emt 0:00:00]} g5 {[%emt 0:00:00]} 41. Bd3+ {[%emt 0:00:00]} Ke6 {[%emt 0:00:00]} 42. Kc3 {[%emt 0:00:00]} 1-0

[Event "2nd Hersonissos Open 2018"]
[Site "Hersonissos"]
[Date "2018.06.18"]
[Round "3"]
[White "Hommeles, Theo"]
[Black "Angermuende, Dirk"]
[Result "1-0"]
[ECO "C11"]
[WhiteElo "2361"]
[BlackElo "1966"]
[Annotator "NA"]
[PlyCount "68"]
[EventDate "2018.06.16"]
[EventType "swiss"]
[EventCountry "GRE"]
[SourceTitle "playchess.com"]
[Source "ChessBase"]
[SourceQuality "1"]
[TimeControl "5400+30"]

1. e4 {[%emt 0:00:00]} e6 {[%emt 0:00:11]} 2. d4 {[%emt 0:00:00]} d5 {[%emt 0:00:06]} 3. Nc3 {[%emt 0:00:00]} Nf6 {[%emt 0:00:21]} 4. e5 {[%emt 0:00:00]} Nfd7 {[%emt 0:00:06]} 5. f4 {[%emt 0:00:02]} c5 {[%emt 0:00:20]} 6. Nf3 {[%emt 0:00:06]} Nc6 {[%emt 0:00:10]} 7. Be3 {[%emt 0:00:20]} a6 {[%emt 0:00:28]} 8. Qd2 {[%emt 0:00:12]} b5 {[%emt 0:00:19]} 9. dxc5 {[%emt 0:00:18]} Bxc5 {[%emt 0:01:21]} 10. Bxc5 {[%emt 0:00:08]} Nxc5 {[%emt 0:00:08]} 11. Qf2 {[%emt 0:00:05]} Qb6 {[%emt 0:01:47]} 12. Bd3 {[%emt 0:00:08]} b4 {[%emt 0:05:14]} 13. Ne2 {[%emt 0:00:08]} a5 {[%emt 0:02:23]} 14. O-O {[%emt 0:00:08]} Na4 {[%emt 0:02:35]} 15. Qxb6 {[%emt 0:22:37]} Nxb6 {[%emt 0:00:13]} 16. Nfd4 {[%emt 0:01:10]} Nxd4 {[%emt 0:01:22]} 17. Nxd4 {[%emt 0:00:08]} O-O {[%emt 0:02:24]} 18. a3 {[%emt 0:04:27]} Bd7 {[%emt 0:02:10]} 19. b3 {[%emt 0:03:43]} f6 {[%emt 0:15:50]} 20. Rfe1 {[%emt 0:02:18]} bxa3 {[%emt 0:18:27]} 21. Rxa3 {[%emt 0:02:34]} a4 {[%emt 0:04:04]} 22. f5 {[%emt 0:10:05]} fxe5 {[%emt 0:02:56]} 23. fxe6 {[%emt 0:03:05]} exd4 {[%emt 0:01:15]} 24. exd7 {[%emt 0:00:09]} Nxd7 {[%emt 0:01:03]} 25. bxa4 {[%emt 0:11:51]} Nb6 {[%emt 0:09:52]} 26. Bb5 {[%emt 0:06:50]} Nc4 {[%emt 0:01:17]} 27. Rd3 {[%emt 0:04:42]} Ne3 {[%emt 0:00:22]} 28. Rc1 {[%emt 0:00:11]} Rac8 {[%emt 0:02:51]} 29. Rxd4 {[%emt 0:01:03]} Rc5 {[%emt 0:05:35]} 30. c3 {[%emt 0:06:25]} Rfc8 {[%emt 0:01:51]} 31. Rd3 {[%emt 0:00:24]} Nf5 {[%emt 0:04:11]} 32. Bd7 {[%emt 0:01:10]} Rf8 {[%emt 0:00:02]} 33. Be6+ {[%emt 0:07:01]} Kh8 {[%emt 0:00:39]} 34. Rf1 {[%emt 0:00:58]} Rf6 {[%emt 0:00:41]} 1-0

[Event "2nd Hersonissos Open 2018"]
[Site "Hersonissos"]
[Date "2018.06.18"]
[Round "3"]
[White "Risting, Eivind Olav"]
[Black "Stefanov, Evtim"]
[Result "1-0"]
[ECO "A06"]
[WhiteElo "2301"]
[BlackElo "1959"]
[Annotator "NA"]
[PlyCount "59"]
[EventDate "2018.06.16"]
[EventType "swiss"]
[EventCountry "GRE"]
[SourceTitle "playchess.com"]
[Source "ChessBase"]
[SourceQuality "1"]
[TimeControl "5400+30"]

1. Nf3 {[%emt 0:00:00]} d5 {[%emt 0:10:02]} 2. g3 {[%emt 0:00:00]} Nf6 {[%emt 0:02:21]} 3. Bg2 {[%emt 0:00:17]} Bg4 {[%emt 0:02:50]} 4. O-O {[%emt 0:02:16]} e6 {[%emt 0:00:41]} 5. c4 {[%emt 0:01:12]} c6 {[%emt 0:00:48]} 6. cxd5 {[%emt 0:02:09]} Bxf3 {[%emt 0:02:28]} 7. Bxf3 {[%emt 0:00:29]} cxd5 {[%emt 0:00:08]} 8. d3 {[%emt 0:01:23]} Nc6 {[%emt 0:01:19]} 9. Nc3 {[%emt 0:05:12]} Be7 {[%emt 0:10:09]} 10. Bf4 {[%emt 0:03:44]} O-O {[%emt 0:01:40]} 11. Rc1 {[%emt 0:14:39]} Rc8 {[%emt 0:03:32]} 12. Bg2 {[%emt 0:04:35]} Qd7 {[%emt 0:00:31]} 13. a3 {[%emt 0:11:49]} Nd4 {[%emt 0:10:28]} 14. Re1 {[%emt 0:06:14]} Nb5 {[%emt 0:03:38]} 15. Bd2 {[%emt 0:11:31]} Rfd8 {[%emt 0:03:24]} 16. Qb3 {[%emt 0:01:28]} Nd4 {[%emt 0:02:31]} 17. Qa2 {[%emt 0:00:54]} a6 {[%emt 0:01:46]} 18. Be3 {[%emt 0:06:52]} Nb5 {[%emt 0:05:44]} 19. Bb6 {[%emt 0:05:54]} Re8 {[%emt 0:00:50]} 20. a4 {[%emt 0:03:32]} Rc6 {[%emt 0:05:46]} 21. Be3 {[%emt 0:04:12]} Nd6 {[%emt 0:03:48]} 22. Bf4 {[%emt 0:01:57]} Rec8 {[%emt 0:05:20]} 23. e4 {[%emt 0:04:37]} dxe4 {[%emt 0:20:18]} 24. dxe4 {[%emt 0:00:06]} Nc4 {[%emt 0:01:23]} 25. Red1 {[%emt 0:01:21]} Qe8 {[%emt 0:00:09]} 26. e5 {[%emt 0:00:06]} Nd5 {[%emt 0:00:30]} 27. Nxd5 {[%emt 0:00:11]} exd5 {[%emt 0:00:29]} 28. Bxd5 {[%emt 0:00:07]} Rc5 {[%emt 0:01:17]} 29. Rxc4 {[%emt 0:00:32]} Rxc4 {[%emt 0:00:23]} 30. Bxc4 {[%emt 0:00:08]} 1-0

[Event "2nd Hersonissos Open 2018"]
[Site "Hersonissos"]
[Date "2018.06.18"]
[Round "3"]
[White "Serpetsidakis, Nikolaos"]
[Black "Bras, Emanouel"]
[Result "1-0"]
[ECO "D11"]
[WhiteElo "2126"]
[BlackElo "1859"]
[Annotator "NA"]
[PlyCount "60"]
[EventDate "2018.06.16"]
[EventType "swiss"]
[EventCountry "GRE"]
[SourceTitle "playchess.com"]
[Source "ChessBase"]
[SourceQuality "1"]
[TimeControl "5400+30"]

1. d4 {[%emt 0:00:00]} d5 {[%emt 0:00:21]} 2. c4 {[%emt 0:00:00]} c6 {[%emt 0:00:25]} 3. Nf3 {[%emt 0:00:07]} Nf6 {[%emt 0:00:10]} 4. e3 {[%emt 0:00:20]} Bg4 {[%emt 0:01:18]} 5. Nc3 {[%emt 0:00:32]} e6 {[%emt 0:00:54]} 6. h3 {[%emt 0:00:13]} Bh5 {[%emt 0:01:45]} 7. g4 {[%emt 0:00:44]} Bg6 {[%emt 0:00:41]} 8. Ne5 {[%emt 0:00:19]} Nbd7 {[%emt 0:04:57]} 9. Nxg6 {[%emt 0:01:04]} hxg6 {[%emt 0:00:50]} 10. Bd2 {[%emt 0:02:28]} Be7 {[%emt 0:08:20]} 11. cxd5 {[%emt 0:16:30]} Nxd5 {[%emt 0:06:33]} 12. e4 {[%emt 0:03:57]} N5b6 {[%emt 0:02:52]} 13. Bf4 {[%emt 0:06:27]} Bg5 {[%emt 0:01:23]} 14. Qd2 {[%emt 0:01:24]} Bxf4 {[%emt 0:01:20]} 15. Qxf4 {[%emt 0:00:46]} Qe7 {[%emt 0:06:50]} 16. Qe3 {[%emt 0:06:50]} Qb4 {[%emt 0:10:40]} 17. O-O-O {[%emt 0:05:05]} Na4 {[%emt 0:10:17]} 18. Rd2 {[%emt 0:07:05]} Nxc3 {[%emt 0:03:16]} 19. bxc3 {[%emt 0:01:41]} Qa5 {[%emt 0:01:10]} 20. Rb2 {[%emt 0:09:59]} O-O {[%emt 0:06:02]} 21. Kb1 {[%emt 0:04:31]} b5 {[%emt 0:06:46]} 22. h4 {[%emt 0:05:05]} Rfb8 {[%emt 0:08:47]} 23. h5 {[%emt 0:02:12]} b4 {[%emt 0:04:12]} 24. c4 {[%emt 0:00:45]} g5 {[%emt 0:05:43]} 25. e5 {[%emt 0:06:40]} Qd8 {[%emt 0:05:54]} 26. Qe4 {[%emt 0:08:59]} Nf8 {[%emt 0:01:26]} 27. Bg2 {[%emt 0:01:05]} a5 {[%emt 0:00:14]} 28. Rd1 {[%emt 0:00:29]} Ra6 {[%emt 0:00:45]} 29. Bf1 {[%emt 0:02:38]} a4 {[%emt 0:00:37]} 30. c5 {[%emt 0:00:12]} Raa8 1-0